Cogmind - Beta 16 @@@ ROGUE MODE // 2025.10.29 @ 18:07:23 Player: Tereza Result: Destroyed by H-71 Marshal with Heavy Mass Driver Performance ------------- Evolutions (6) 3000 Regions Visited (16) 3200 Robots Destroyed (289) 1445 Value Destroyed (10972) 10972 Prototype IDs (25) 500 Alien Tech Used (1) 200 Bonus (3228) 3228 TOTAL SCORE: 22545 Bonus ------- High Alert Combat Kills 520 Follower Combat Kills 1608 Met Zhirov 300 Built Enhanced Grunts 300 Met R17 at Cetus 500 Cogmind --------- Core Integrity 0/1150 Matter 167/300 Energy 100/100 System Corruption 5% Temperature Cool (0) Movement Core (50) Location -4/Factory Parts ------- > --- POWER (2) -------- (None) > --- PROPULSION (5) --- (None) > --- UTILITY (9) ------ Improved Target Analyzer > --- WEAPON (3) ------- (None) > --- INVENTORY (5) ---- Advanced Sensor Array Improved Hardlight Generator Improved System Shield Variable Charge Gun Matter Neutralizer Peak State ------------ > --- POWER ------------ Neutrino Core > --- PROPULSION ------- Flexi-carbon Leg Myomer Leg Advanced Myomer Leg Advanced Myomer Leg Advanced Myomer Leg > --- UTILITY ---------- Advanced Heat Sink High-capacity Storage Unit Advanced Sensor Array Advanced Signal Interpreter Improved Target Analyzer Improved Weapon Cycler Reaction Control System Improved Hardlight Generator Advanced Hacking Suite > --- WEAPON ----------- Particle Gun Variable Charge Gun Heavy Beamcaster > --- INVENTORY -------- Large Storage Unit Improved Sensor Array Improved Signal Interpreter Advanced Terrain Scan Processor Core Analyzer Advanced Particle Charger Improved Hardlight Generator Hacking Suite Improved System Shield System Restoration Module Transdimensional Reconstructor Variable Charge Gun Long-range Proton Cannon Long-range Proton Cannon Matter Neutralizer Smartbomb Launcher Advanced Datajack Makeshift Spear [Rating: 107] Favorites ----------- Power Hybrid Deuterium Engine Engine Hybrid Deuterium Engine Power Core Fission Core Reactor Antimatter Reactor Propulsion Flexi-carbon Leg Treads Light Treads Leg Flexi-carbon Leg Hover Unit Gyrokinetic Inverter Utility High-capacity Storage Unit Device Improved Heat Sink Storage High-capacity Storage Unit Processor Advanced Signal Interpreter Hackware Advanced Hacking Suite Protection Layered Medium Armor Plating Weapon Heavy Particle Gun Energy Gun Heavy Particle Gun Energy Cannon Plasma Cannon Ballistic Gun Light Assault Rifle Launcher Guided EMP Blaster Impact Weapon Gravity Flail Piercing Weapon Makeshift Spear Special Melee Weapon Advanced Datajack Build | -11 -10 -9 -9 -8 -7 -6 -6 -6 -6 -6 -5 -5 -5 -5 -4 -4 ------- Run | Yrd Mat Mat Min Mat Fac Fac Ext Cet Arc Hub Fac Upp Upp Zhi Pro Fac Slots Evolved 12 | . . 2 . 2 2 2 . . . . 2 . . . . 2 Power 1 | . . . . . 1 . . . . . . . . . . . Propulsion 3 | . . 1 . . 1 . . . . . 1 . . . . . Utility 7 | . . 1 . 1 . 2 . . . . 1 . . . . 2 Weapon 1 | . . . . 1 . . . . . . . . . . . . Parts Attached 203 | 7 4 13 4 19 19 37 9 6 4 15 22 2 4 4 17 17 Power 27 | 1 . 1 1 2 4 4 3 2 . 2 3 1 . 1 2 . Engine 13 | 1 . 1 1 1 3 3 1 2 . . . . . . . . Core 11 | . . . . 1 1 1 2 . . 1 2 1 . . 2 . Reactor 3 | . . . . . . . . . . 1 1 . . 1 . . Propulsion 60 | 2 2 6 1 6 7 17 1 1 . 2 6 . 1 1 5 2 Treads 28 | 2 2 6 1 6 7 4 . . . . . . . . . . Leg 31 | . . . . . . 13 1 1 . 2 6 . 1 1 5 1 Wheel . | . . . . . . . . . . . . . . . . . Hover 1 | . . . . . . . . . . . . . . . . 1 Flight . | . . . . . . . . . . . . . . . . . Utility 59 | 2 2 3 1 4 6 10 3 1 3 3 7 . 3 1 3 7 Device 45 | 1 1 2 1 4 5 6 3 1 3 2 5 . 2 1 2 6 Storage 5 | 1 1 1 . . 1 . . . . . . . . . . 1 Processor 6 | . . . . . . 4 . . . . . . 1 . 1 . Hackware 2 | . . . . . . . . . . . 2 . . . . . Protection 1 | . . . . . . . . . . 1 . . . . . . Artifact . | . . . . . . . . . . . . . . . . . Weapon 57 | 2 . 3 1 7 2 6 2 2 1 8 6 1 . 1 7 8 Energy Gun 33 | . . 2 1 7 2 4 1 2 . 6 2 . . . 3 3 Energy Cannon 9 | . . . . . . 1 1 . . . 3 1 . . 3 . Ballistic Gun 5 | 2 . 1 . . . . . . . . . . . 1 1 . Ballistic Cannon . | . . . . . . . . . . . . . . . . . Launcher 5 | . . . . . . . . . 1 1 1 . . . . 2 Special Weapon . | . . . . . . . . . . . . . . . . . Impact Weapon 2 | . . . . . . . . . . . . . . . . 2 Slashing Weapon . | . . . . . . . . . . . . . . . . . Piercing Weapon 1 | . . . . . . . . . . . . . . . . 1 Special Melee Weapon 2 | . . . . . . 1 . . . 1 . . . . . . Unidentified Prototypes 16 | . . 1 . 3 1 . . 2 1 1 2 . . 4 . 1 Parts Lost 106 | . 1 1 3 3 9 26 1 . . 11 9 . 5 . 19 18 Power 17 | . . . 1 . 1 4 . . . 3 3 . 1 . 3 1 Propulsion 32 | . . . . 1 3 10 . . . 2 2 . 2 . 6 6 Utility 30 | . 1 1 1 1 3 6 . . . 2 2 . 1 . 5 7 Weapon 27 | . . . 1 1 2 6 1 . . 4 2 . 1 . 5 4 Highest Loss Streak 10 | . 1 1 2 3 3 10 1 . . 9 4 . 2 . 9 9 To Critical Strikes 3 | . . . . 1 . . . . . 2 . . . . . . Average Backups 18 | 3 12 19 18 19 19 19 18 19 18 19 19 19 19 20 18 12 Power 1 | . 1 1 . 1 1 1 . 1 1 1 2 . . . . . Propulsion 3 | 2 4 5 6 5 3 3 3 3 3 3 2 2 2 2 2 1 Utility 7 | . 3 5 5 6 8 8 8 9 8 9 9 11 12 11 10 6 Weapon 5 | . 3 8 6 5 5 5 4 5 4 4 4 4 4 4 3 3 Tool/Special . | . . . . . . . . . . . . . . . . . Unused Backups 70 | . 5 7 . 15 3 8 5 4 2 . 6 . . 1 1 13 Power 9 | . . 1 . 3 1 2 . . . . 2 . . . . . Propulsion 19 | . 3 . . 2 . 4 3 2 . . 1 . . . . 4 Utility 25 | . 2 1 . 4 . 2 2 1 2 . 1 . . 1 1 8 Weapon 14 | . . 5 . 5 2 . . 1 . . 1 . . . . . Tool/Special 3 | . . . . 1 . . . . . . 1 . . . . 1 Average Slot Usage (%) 96 | . 98 98 96 98 98 97 99 100 99 86 98 93 89 78 93 72 Engine 7 | . 14 11 10 7 11 12 6 6 13 7 . . . . . . Core 2 | . . . . 1 2 . 5 5 . 1 4 7 7 5 4 3 Treads 13 | . 28 32 33 26 29 2 . . . . . . . . . . Leg 14 | . . . . . . 22 25 26 26 23 28 29 25 25 27 19 Device 20 | . 12 21 18 26 22 18 19 20 20 17 22 23 17 16 15 18 Storage 7 | . 14 11 11 9 7 6 6 6 6 6 5 5 5 5 5 3 Processor 5 | . . . . . . 12 13 13 13 9 5 5 7 11 9 10 Hackware 1 | . . . . . . . . . . . 4 5 5 5 5 3 Energy Gun 14 | . . 17 22 26 22 19 6 6 6 9 7 5 5 . 6 6 Energy Cannon 3 | . . . . . . . 12 13 12 . 8 7 10 . 4 . Ballistic Gun 2 | . 28 4 . . . . . . . . . . . . 2 . Peak Build Rating 107 | 7 8 20 18 28 45 69 75 82 87 87 97 93 93 96 97 107 Average Rating 54 | 5 7 17 17 24 39 64 73 76 82 76 93 87 82 72 89 82 On Entrance 54 | . 7 8 18 17 28 43 56 75 82 87 80 82 93 72 93 83 Avg Prop Armor Cover (%) 8 | . . . . . 6 7 . . . . . 3 . . . 16 Naked Turns . | . . . . . . . . . . . . . . . . . Heaviest Build 104 | 14 29 55 55 62 68 72 90 92 91 93 104 89 88 80 88 80 Greatest Support 135 | 40 40 66 66 66 90 88 80 88 88 88 116 111 111 113 135 135 Greatest Overweight (x) 4 | 4 . . . 1 1 1 1 1 1 1 1 . 1 . 1 1 Average Overweight (x) . | 1 . . . . . . 1 1 . . . . . . . . Largest Inventory Capacity 20 | 8 15 20 20 20 20 20 20 20 20 20 20 20 20 20 20 20 Average Capacity 19 | 7 13 19 20 20 20 20 20 20 20 20 20 20 20 20 20 14 Most Carried 20 | 5 15 20 20 20 20 20 20 20 20 20 20 20 20 20 20 20 Average Carried 18 | 4 12 19 18 19 19 19 19 20 19 19 19 19 19 19 19 12 Final Capacity 20 | 8 15 20 20 20 20 20 20 20 20 20 20 20 20 20 20 5 Final Carried 20 | 5 15 20 18 20 19 19 20 20 20 19 19 20 20 20 19 5 Class Distribution -------------------- 21% | Scavenger-Skirmisher 18% | Mutant 14% | Scavenger-Tank 12% | Tank 10% | Skirmisher 6% | Scavenger-Gunner 5% | Gunner 5% | Scavenger-Mutant Dominant Class ---------------- Mutant | -10/Materials Mutant | -9/Materials Mutant | -9/Mines Gunner | -8/Materials Scavenger-Tank | -7/Factory Scavenger-Skirmisher | -6/Factory Tank | -6/Extension Commander-Tank | -6/Cetus Scavenger-Tank | -6/Archives Scavenger-Skirmisher | -6/Hub_04(d) Scavenger-Tank | -5/Factory Scavenger-Skirmisher | -5/Upper Caves Scavenger-Skirmisher | -5/Upper Caves Scavenger-Mutant | -5/Zhirov Scavenger-Skirmisher | -4/Proximity Caves Scavenger-Mutant | -4/Factory Resources | -11 -10 -9 -9 -8 -7 -6 -6 -6 -6 -6 -5 -5 -5 -5 -4 -4 ----------- Run | Yrd Mat Mat Min Mat Fac Fac Ext Cet Arc Hub Fac Upp Upp Zhi Pro Fac Matter Collected 3527 | 235 388 290 35 195 247 372 365 87 48 160 298 143 54 . 560 50 Remotely . | . . . . . . . . . . . . . . . . . Salvage Created 12811 | 67 582 1326 159 1183 1373 1524 1624 80 313 704 1991 437 270 . 655 523 Parts 523 | 5 39 94 11 49 49 45 51 4 17 29 76 6 13 . 18 17 Haulers Intercepted 15 | . 2 5 . 5 2 1 . . . . . . . . . . Recyclers Shooed 4 | 1 . . . . . 1 . . . . 2 . . . . . Parts Field Recycled . | . . . . . . . . . . . . . . . . . Retrieved Matter . | . . . . . . . . . . . . . . . . . Parts Self-Destructed 31 | . . . . . . . . . . . . . 12 . 19 . Prevented . | . . . . . . . . . . . . . . . . . Parts Restored . | . . . . . . . . . . . . . . . . . Kills | -11 -10 -9 -9 -8 -7 -6 -6 -6 -6 -6 -5 -5 -5 -5 -4 -4 ------- Run | Yrd Mat Mat Min Mat Fac Fac Ext Cet Arc Hub Fac Upp Upp Zhi Pro Fac Combat Hostiles Destroyed 223 | . 14 29 8 17 26 25 21 1 1 14 37 . 6 . 14 10 Melee 2 | . . . . . . . . . . . . . . . . 2 Guns 145 | . 14 29 8 15 24 20 4 . . 7 13 . 2 . 6 3 Cannons 40 | . . . . . . 1 14 . 1 . 18 . 2 . 4 . AOE 15 | . . . . . . . . . . 7 4 . . . 1 3 Classes Destroyed 21 | 1 4 3 1 2 1 2 1 . . . 1 2 . . 3 . Worker 6 | . . . 1 1 1 2 . . . . 1 . . . . . Builder 3 | . . . . 1 . . . . . . 2 . . . . . Tunneler 6 | 3 1 2 . . . . . . . . . . . . . . Hauler 15 | . 2 5 . 5 2 1 . . . . . . . . . . Recycler 7 | . . 1 . 1 . 1 3 . . . 1 . . . . . Minesweeper 2 | . . . . . . . . . . . . . . . 2 . Mechanic 1 | . . . . . . . . . . . 1 . . . . . Operator 11 | . 1 1 . 1 . . 1 . 7 . . . . . . . Drone 2 | . . . . . . . . . . . . . . . 2 . Watcher 14 | . . 2 . 2 1 3 1 . . 1 3 . . . . 1 Swarmer 64 | . 6 15 6 3 5 4 4 . . . 13 . 4 . 3 1 Grunt 73 | . 8 6 2 7 10 8 6 . . 8 14 . . . . 4 Brawler 1 | . . . . . . 1 . . . . . . . . . . Duelist 2 | . . . . . . 1 1 . . . . . . . . . Sentry 34 | . . 8 . 5 5 3 7 . 1 2 . . . . . 3 Hunter 16 | . . . . 2 3 1 . . . 4 4 . 1 . 1 . Programmer 21 | . . . . . 3 7 1 . . . 6 . . . 2 2 Behemoth 3 | . . . . . . . 2 . . . . . 1 . . . Cetus Guard 1 | . . . . . . . . 1 . . . . . . . . Decomposer 1 | . . . . . . . . . . . . . 1 . . . Packrat 5 | . . . . . . . . . . . . 5 . . . . Samaritan 1 | . . . . . . . . . . . . 1 . . . . Tinkerer 1 | . . . . . . . . . . . . 1 . . . . Thug 3 | . . . . . . . . . . . . . . . 3 . Savage 2 | . . . . . . . 1 . . . . . . . 1 . Butcher 1 | . . . . . . . . . . . . . . . 1 . Mutant 1 | . . . . . . . . . . . . . . . 1 . Best Kill Streak 12 | 3 3 8 4 5 4 7 5 1 6 12 10 . 4 . 6 6 Combat Bots Only 11 | . 3 8 3 3 3 4 5 1 1 11 9 . 4 . 6 6 Max Kills in Single Turn 4 | 1 2 2 2 2 1 2 2 1 1 4 2 1 2 . 1 1 Gunslinging 1 | . 1 1 . 1 . . . . . . . . . . . . Exploded 4 | . . . . . . . . . . 4 2 . . . 1 1 Melee 1 | . . . . . . . . . . . . . . . . 1 Uniques/NPCs Destroyed . | . . . . . . . . . . . . . . . . . Combat | -11 -10 -9 -9 -8 -7 -6 -6 -6 -6 -6 -5 -5 -5 -5 -4 -4 -------- Run | Yrd Mat Mat Min Mat Fac Fac Ext Cet Arc Hub Fac Upp Upp Zhi Pro Fac Hostile Shots Fired 1830 | . 59 110 32 64 325 306 130 5 2 115 213 . 36 . 160 273 Missed 602 | . 18 33 7 20 112 111 43 3 1 36 60 . 9 . 58 91 Hits 1228 | . 41 77 25 44 213 195 87 2 1 79 153 . 27 . 102 182 Melee 16 | . . . . . . 11 . . . . . . . . 5 . Projectile 1212 | . 41 77 25 44 213 184 87 2 1 79 153 . 27 . 97 182 AOE 2 | . . . . . . . . . . . 2 . . . . . Critical Strikes 40 | . . 1 . 3 2 8 . 1 . 5 5 . . . 6 9 Part Disruptions 4 | . . . . . 1 1 . . . . 2 . . . . . Damage Taken 16681 | . 428 844 251 589 1828 2896 543 74 54 1324 2285 . 516 . 2157 2892 Core 2853 | . 36 128 56 78 191 279 53 23 . 172 246 . 67 . 374 1150 Absorbed by Shields 2013 | . . . . 86 406 . 507 24 18 . 684 . . . . 288 Regen/Repaired (Parts) 411 | . . . . . . . 186 . . . 225 . . . . . Core Remaining (%) 66 | 100 85 . 54 85 72 . . . . 38 . . . . 31 . Volleys Fired 703 | 6 49 88 15 59 79 101 57 17 24 27 84 13 13 . 53 18 Largest 3 | 2 2 2 2 3 3 3 3 3 3 3 3 3 3 . 3 3 Hottest 278 | 40 40 112 112 173 191 210 215 229 240 241 278 255 255 . 251 221 Shots Fired 1779 | 12 99 170 30 168 221 273 168 48 69 51 243 29 37 . 126 35 Gun 1315 | 12 99 170 30 168 221 262 61 15 21 41 81 13 12 . 78 31 Cannon 446 | . . . . . . 11 107 33 48 7 159 16 25 . 40 . Launcher 18 | . . . . . . . . . . 3 3 . . . 8 4 Special . | . . . . . . . . . . . . . . . . . Kinetic 163 | 12 99 27 . . . . . . . . . . . . 25 . Thermal 1584 | . . 143 30 168 221 273 168 48 69 48 240 29 37 . 79 31 Explosive 15 | . . . . . . . . . . 3 . . . . 8 4 Electromagnetic 17 | . . . . . . . . . . . 3 . . . 14 . Robot Hit Streak 27 | 3 12 18 5 21 17 14 19 10 6 9 27 8 5 . 14 17 Robot Miss Streak 9 | 1 3 4 2 4 5 9 7 4 3 1 4 1 3 . 8 2 Penetration Max . | . . . . . . . . . . . . . . . . . Secondary Targets 25 | . 3 8 . 4 5 4 . . . . . . . . 1 . Max Gunslinging Chain 2 | . 1 1 . 2 1 1 . . . . . . . . 1 . Shots Hit Robots 1138 | 7 62 120 12 115 134 175 108 33 44 38 146 20 19 . 68 37 Core Hits 577 | 3 32 50 9 51 60 119 49 8 17 30 71 10 7 . 41 20 Critical Kills 10 | . . . . . . 1 2 . . . 3 . 2 . 2 . Critical Parts Destroyed 4 | . 2 . . . . . . . . . . . . . . 2 Critical Strikes 55 | . 2 10 2 6 9 9 4 . . . 5 . 2 . 4 2 Burn 41 | . . 10 2 6 9 8 2 . . . 2 . . . 2 . Meltdown 9 | . . . . . . 1 2 . . . 3 . 2 . 1 . Destroy 3 | . 2 . . . . . . . . . . . . . 1 . Smash 2 | . . . . . . . . . . . . . . . . 2 Melee Attacks 24 | . . . . . . . . . . . . . . . . 24 Impact 7 | . . . . . . . . . . . . . . . . 7 Slashing . | . . . . . . . . . . . . . . . . . Piercing 17 | . . . . . . . . . . . . . . . . 17 Sneak Attacks . | . . . . . . . . . . . . . . . . . Combat Hostiles . | . . . . . . . . . . . . . . . . . Follow-up Attacks . | . . . . . . . . . . . . . . . . . Damage Inflicted 28695 | 77 717 1944 445 1788 2928 4107 2903 828 1289 1553 4959 593 635 . 2317 1612 Guns 16310 | 77 717 1944 216 1781 2886 3497 840 123 372 947 1277 215 102 . 837 479 Cannons 9006 | . . . . . . 263 2015 705 917 99 3347 378 533 . 749 . Explosions 2638 | . . . 229 . 42 275 . . . 495 325 . . . 731 541 Melee 584 | . . . . . . . . . . . . . . . . 584 Ramming 157 | . . . . 7 . 72 48 . . 12 10 . . . . 8 Kinetic 1305 | 77 717 259 . . . . . . . . . . . . 252 . Thermal 24148 | . . 1685 445 1781 2886 3760 2855 828 1289 1046 4699 593 635 . 1167 479 Explosive 1767 | . . . . . . . . . . 495 . . . . 731 541 Electromagnetic 734 | . . . . . 42 275 . . . . 250 . . . 167 . Impact 329 | . . . . . . . . . . . . . . . . 329 Slashing . | . . . . . . . . . . . . . . . . . Piercing 255 | . . . . . . . . . . . . . . . . 255 Highest Corruption 21 | . 2 . . . 3 8 8 8 8 2 10 10 10 10 21 5 Average Corruption 7 | . 2 . . . 2 3 8 8 6 2 6 10 10 10 15 3 Corruption Purged 8 | . . . . . . . . . 8 . . . . . . . Corruption Blocked . | . . . . . . . . . . . . . . . . . Effects 314 | . 1 . . . 27 35 77 20 9 . 41 20 25 9 45 5 Message Errors 82 | . . . . . 7 10 15 3 3 . 13 3 9 3 14 2 Matter Fused 71 | . . . . . 5 8 20 4 1 . 8 6 4 2 12 1 Heat Flow Errors 38 | . . . . . 4 3 9 5 1 . 7 3 3 . 3 . Energy Discharges 39 | . . . . . 3 6 10 2 4 . 3 2 1 2 5 1 Parts Rejected 4 | . . . . . . . 1 1 . . 1 . . . 1 . Parts Fused 5 | . . . . . . . 1 1 . . . . 1 2 . . Data Loss (minor) 27 | . . . . . 3 3 9 1 . . 3 1 3 . 3 1 Data Loss (major) 19 | . . . . . 3 1 5 2 . . . 5 2 . 1 . Misfires 11 | . 1 . . . . 1 3 . . . 2 . 2 . 2 . Alerts 2 | . . . . . 1 . 1 . . . . . . . . . Misdirections 1 | . . . . . . . . . . . . . . . 1 . Weapon Failures 15 | . . . . . 1 3 3 1 . . 4 . . . 3 . Overload Shots . | . . . . . . . . . . . . . . . . . Overflow Damage 624 | . . . 27 . . 11 39 . 93 . 118 75 6 . 35 220 Projectiles 315 | . . . . . . . 37 . 93 . 98 75 6 . 6 . Explosions 89 | . . . 27 . . 4 . . . . 20 . . . 29 9 Melee 220 | . . . . . . 7 2 . . . . . . . . 211 Knockbacks 4 | . . . . . . 1 1 . . . 1 . . . . 1 Impact 4 | . . . . . . 1 1 . . . 1 . . . . 1 Kinetic . | . . . . . . . . . . . . . . . . . Secondary . | . . . . . . . . . . . . . . . . . Self-Inflicted Damage 373 | . . . 27 . 13 35 . . . . 120 . . . 37 141 Shots 13 | . . . 1 . 1 1 . . . . 6 . . . 1 3 Rammed 3 | . 1 . . 2 . . . . . . . . . . . . Targets Rammed 14 | . 1 . . 2 . 3 3 . . 1 1 . . . . 3 Kicked 11 | . . . . . . 3 3 . . 1 1 . . . . 3 Crushed . | . . . . . . . . . . . . . . . . . Highest Temperature 500 | . 15 129 75 313 311 203 351 211 300 145 348 416 188 . 500 411 Average Temperature 80 | . 7 27 26 87 86 76 87 60 87 53 120 244 67 . 109 190 Received Heat Transfer 2796 | . 162 165 39 242 457 453 108 12 . 279 408 . 24 . 231 216 Effects 9 | . . . . . . . 3 . 1 . . . . . 4 1 Shutdowns 1 | . . . . . . . . . . . . . . . 1 . Energy Bleed 4 | . . . . . . . 2 . 1 . . . . . 1 . Interference 2 | . . . . . . . . . . . . . . . 2 . Matter Decay 1 | . . . . . . . 1 . . . . . . . . . Short Circuit 1 | . . . . . . . . . . . . . . . . 1 Siege Activations . | . . . . . . . . . . . . . . . . . Martial Activations . | . . . . . . . . . . . . . . . . . Shielding Activations . | . . . . . . . . . . . . . . . . . Robots Disrupted . | . . . . . . . . . . . . . . . . . Combat Hostiles . | . . . . . . . . . . . . . . . . . Robots Corrupted 4 | . . . . . . 1 . . . . . . . . 1 2 Combat Hostiles 2 | . . . . . . . . . . . . . . . 1 1 Parts Fried 6 | . . . . . . 2 . . . . . . . . 2 2 Impact Corruptions 7 | . . . . . . 1 1 . . . . . . . . 5 Robots Melted 19 | . . . . 2 2 4 3 1 . . 3 . 2 . 1 1 Combat Hostiles 18 | . . . . 2 2 4 3 1 . . 2 . 2 . 1 1 Parts Melted 146 | . . 18 . 17 23 22 16 . 7 5 19 2 8 . 7 2 Heat Transferred 44893 | . . 4625 966 4662 5712 6426 5561 1659 2244 1570 7010 779 844 . 1984 851 Parts Sabotaged . | . . . . . . . . . . . . . . . . . Parts Stolen . | . . . . . . . . . . . . . . . . . Parts Stripped . | . . . . . . . . . . . . . . . . . Power Chain Reactions 4 | . . . . . . . . . . . 4 . . . . . Alert | -11 -10 -9 -9 -8 -7 -6 -6 -6 -6 -6 -5 -5 -5 -5 -4 -4 ------- Run | Yrd Mat Mat Min Mat Fac Fac Ext Cet Arc Hub Fac Upp Upp Zhi Pro Fac Maximum Alert Level 3 | . . 2 . . 1 . 2 2 1 2 3 . . . . 1 Low Security (%) 71 | 100 100 73 100 100 89 100 54 5 10 40 . . . . . 49 Level 1 20 | . . 20 . . 10 . 44 71 89 11 50 . . . . 50 Level 2 5 | . . 6 . . . . . 22 . 47 28 . . . . . Level 3 1 | . . . . . . . . . . . 21 . . . . . Level 4 . | . . . . . . . . . . . . . . . . . Level 5 . | . . . . . . . . . . . . . . . . . High Security . | . . . . . . . . . . . . . . . . . Max Security . | . . . . . . . . . . . . . . . . . Peak Influence 911 | 10 136 460 198 118 267 150 400 446 300 664 911 . . . . 349 Initial 291 | . . 48 112 19 52 117 71 199 149 64 291 . . . . 150 Average 144 | 1 46 123 102 23 92 56 168 317 249 340 467 . . . . 201 Influence Increases 8701 | 15 407 862 271 562 866 876 948 437 261 944 1243 . 150 . 238 621 Destroy 0b10 Robot/C 4920 | . 280 580 180 340 520 500 560 220 80 420 740 . 120 . 180 200 Destroy 0b10 Robot/NC 400 | 15 20 55 5 55 20 35 50 10 35 35 40 . . . 20 5 Destroy Leader 1054 | . 74 144 30 104 166 138 86 10 . 94 116 . 30 . 20 42 Allied During Kill 733 | . . . 4 . . . 124 180 115 292 . . . . 18 . Successful Hack 338 | . 18 20 . 48 33 92 89 8 . . 21 . . . . 9 Disable Machine 390 | . . . 30 15 75 75 15 . 30 30 120 . . . . . Anti-Garrison Action 150 | . . . . . . . . . . . . . . . . 150 Destroy Structure 326 | . . 3 22 . 7 21 9 9 1 58 176 . . . . 20 Advance Influence 150 | . . . . . . . . . . . . . . . . 150 Partial Spotted 30 | . . . . . . . . . . . 30 . . . . . Lose Combat Pursuer 210 | . 15 60 . . 45 15 15 . . 15 . . . . . 45 Influence Decreases 8530 | 15 291 689 509 497 741 971 737 420 451 532 951 544 450 44 238 450 Entered New Map 1788 | . . 68 177 32 64 124 75 158 225 120 305 330 66 44 . . Time Decay 5413 | 15 281 470 302 435 587 607 526 262 206 222 556 214 334 . 126 270 Lost Part 941 | . 10 1 30 30 90 240 10 . . 110 90 . 50 . 100 180 Lost Ally 238 | . . . . . . . 126 . 20 80 . . . . 12 . Purge Threat 150 | . . 150 . . . . . . . . . . . . . . Squads Dispatched 65 | . 3 3 . 4 21 11 3 1 . 6 7 . . . . 6 Investigation 10 | . 2 1 . . 4 . 1 1 . . . . . . . 1 Extermination 12 | . . . . . 4 5 . . . . 2 . . . . 1 Reinforcement 25 | . 1 2 . 2 1 5 2 . . 6 5 . . . . 1 Assault 4 | . . . . 2 . . . . . . . . . . . 2 Garrison 14 | . . . . . 12 1 . . . . . . . . . 1 Intercept . | . . . . . . . . . . . . . . . . . Searches Triggered . | . . . . . . . . . . . . . . . . . Construction Impeded 6 | . . . . . . 2 1 . . 1 2 . . . . . Haulers Reinforced 8 | . . . . . 1 2 . . . 3 2 . . . . . Active Scanning Responses . | . . . . . . . . . . . . . . . . . Cargo Convoy Interrupts . | . . . . . . . . . . . . . . . . . Stealth | -11 -10 -9 -9 -8 -7 -6 -6 -6 -6 -6 -5 -5 -5 -5 -4 -4 --------- Run | Yrd Mat Mat Min Mat Fac Fac Ext Cet Arc Hub Fac Upp Upp Zhi Pro Fac Distress Signals 14 | . 1 5 . 2 . . 1 2 . 2 1 . . . . . Communications Jammed . | . . . . . . . . . . . . . . . . . Distress Signals . | . . . . . . . . . . . . . . . . . Times Spotted 368 | . 31 45 9 21 35 44 31 12 17 26 50 . 4 . 19 24 Peak Tracking Total 10 | . 5 9 3 3 4 5 5 5 1 9 5 . 2 . 6 10 Tactical Retreats 11 | . 1 3 . . 2 1 1 . . 1 . . . . . 2 Traps | -11 -10 -9 -9 -8 -7 -6 -6 -6 -6 -6 -5 -5 -5 -5 -4 -4 ------- Run | Yrd Mat Mat Min Mat Fac Fac Ext Cet Arc Hub Fac Upp Upp Zhi Pro Fac Traps Triggered 20 | . 3 1 . . 2 4 7 . . 1 2 . . . . . Indirectly . | . . . . . . . . . . . . . . . . . Trap Hack Attempts 43 | . . . . . . 36 . . . 7 . . . . . . Triggered . | . . . . . . . . . . . . . . . . . Disarmed 2 | . . . . . . 2 . . . . . . . . . . Reprogrammed 1 | . . . . . . . . . . 1 . . . . . . Reused . | . . . . . . . . . . . . . . . . . Traps Extracted . | . . . . . . . . . . . . . . . . . Installed . | . . . . . . . . . . . . . . . . . Triggered . | . . . . . . . . . . . . . . . . . Most Traps Carried 2 | . . . . . . . . . . . . . . . 2 2 Machines | -11 -10 -9 -9 -8 -7 -6 -6 -6 -6 -6 -5 -5 -5 -5 -4 -4 ---------- Run | Yrd Mat Mat Min Mat Fac Fac Ext Cet Arc Hub Fac Upp Upp Zhi Pro Fac Machines Disabled 27 | . . . 2 1 5 5 1 . 2 2 8 . . . . 1 Max in Single Turn 2 | . . . 2 1 2 1 1 . 1 . 2 . . . . 1 Garrison Access 7 | . . . . 1 1 2 . . . . 2 . . . . 1 Machines Repaired . | . . . . . . . . . . . . . . . . . Machines Dismantled . | . . . . . . . . . . . . . . . . . Machines Sabotaged . | . . . . . . . . . . . . . . . . . Overloaded Fab Kills . | . . . . . . . . . . . . . . . . . Hacking | -11 -10 -9 -9 -8 -7 -6 -6 -6 -6 -6 -5 -5 -5 -5 -4 -4 --------- Run | Yrd Mat Mat Min Mat Fac Fac Ext Cet Arc Hub Fac Upp Upp Zhi Pro Fac Machines Accessed 97 | . 8 10 . 10 11 18 17 2 . 4 9 . . 6 . 2 Terminals 59 | . 7 8 . 8 4 8 14 2 . 4 3 . . . . 1 Fabricators 5 | . . . . . 2 2 . . . . 1 . . . . . Repair Stations 4 | . . . . . . 1 1 . . . 2 . . . . . Recycling Units 8 | . 1 . . . 2 2 2 . . . 1 . . . . . Scanalyzers 7 | . . 2 . 2 . 3 . . . . . . . . . . Garrison Access 8 | . . . . . 3 2 . . . . 2 . . . . 1 Total Hacks 223 | . 18 26 . 32 18 33 36 4 . 8 22 . . 19 . 7 Successful 116 | . 9 14 . 14 8 17 19 1 . . 13 . . 19 . 2 Failed 105 | . 9 12 . 17 10 15 17 3 . 8 9 . . . . 5 Catastrophic 19 | . 1 . . 2 5 4 4 1 . 1 1 . . . . . Database Lockouts 2 | . . . . 1 . 1 . . . . . . . . . . Manual 105 | . 15 19 . 15 12 10 15 1 . 6 7 . . . . 5 Terminals 135 | . 17 21 . 27 7 13 26 4 . 8 7 . . . . 5 Fabricators 10 | . . . . . 3 5 . . . . 2 . . . . . Repair Stations 14 | . . . . . . 2 5 . . . 7 . . . . . Recycling Units 16 | . 1 . . . 4 3 5 . . . 3 . . . . . Scanalyzers 18 | . . 5 . 5 . 8 . . . . . . . . . . Garrison Access 11 | . . . . . 4 2 . . . . 3 . . . . 2 Terminal Hacks 51 | . 4 6 . 7 1 3 8 1 . . 1 . . 19 . 1 Record 8 | . . . . . . . . 1 . . . . . 7 . . Part Schematic 5 | . . . . . . . . . . . . . . 4 . 1 Robot Analysis 9 | . 2 1 . 2 . . . . . . . . . 4 . . Prototype ID Bank 5 | . 1 . . . . . . . . . . . . 4 . . Open Door 7 | . . . . . . . 7 . . . . . . . . . Open DSF 1 | . . . . . 1 . . . . . . . . . . . Branch Access Points 3 | . . 1 . 1 . 1 . . . . . . . . . . Alert Level 5 | . . 1 . 2 . 1 1 . . . . . . . . . Unreport Threat 1 | . . 1 . . . . . . . . . . . . . . Locate Traps 5 | . 1 2 . . . 1 . . . . 1 . . . . . Hauler Manifests 1 | . . . . 1 . . . . . . . . . . . . Zone Layout 1 | . . . . 1 . . . . . . . . . . . . Fabricator Hacks 3 | . . . . . 1 1 . . . . 1 . . . . . Network Status 3 | . . . . . 1 1 . . . . 1 . . . . . Repair Station Hacks 9 | . . . . . . 1 4 . . . 4 . . . . . Scan Component 5 | . . . . . . 1 2 . . . 2 . . . . . Repair 4 | . . . . . . . 2 . . . 2 . . . . . Recycling Unit Hacks 5 | . . . . . 2 1 . . . . 2 . . . . . Report Inventory 4 | . . . . . 2 1 . . . . 1 . . . . . Retrieve Components 1 | . . . . . . . . . . . 1 . . . . . Scanalyzer 11 | . . 4 . 3 . 4 . . . . . . . . . . Insert Component 1 | . . . . . . 1 . . . . . . . . . . Retrieve Study 10 | . . 4 . 3 . 3 . . . . . . . . . . Garrison Access Hacks 5 | . . . . . 1 2 . . . . 2 . . . . . Seal Access 5 | . . . . . 1 2 . . . . 2 . . . . . Unauthorized Hacks 31 | . 5 4 . 4 3 5 6 . . . 3 . . . . 1 Terminals 22 | . 4 4 . 4 . 2 5 . . . 2 . . . . 1 Botnet 18 | . 3 4 . 3 . 2 4 . . . 1 . . . . 1 Disrupt 1 | . . . . . . . 1 . . . . . . . . . Operators 3 | . 1 . . 1 . . . . . . 1 . . . . . Fabricators 4 | . . . . . 1 2 . . . . 1 . . . . . Fabnet 2 | . . . . . . 1 . . . . 1 . . . . . Haulers 2 | . . . . . 1 1 . . . . . . . . . . Repair Stations . | . . . . . . . . . . . . . . . . . Recycling Units 4 | . 1 . . . 1 1 1 . . . . . . . . . Monitor 1 | . . . . . 1 . . . . . . . . . . . Mask 3 | . 1 . . . . 1 1 . . . . . . . . . Scanalyzers . | . . . . . . . . . . . . . . . . . Garrison Access 1 | . . . . . 1 . . . . . . . . . . . Watchers 1 | . . . . . 1 . . . . . . . . . . . Data Cores Recovered 3 | . 1 . . . 1 . . . . 1 . . . . . . Used 2 | . . . . . 1 . . . . 1 . . . . . . Hacking Detections 73 | . 8 10 . 8 9 14 12 2 . 4 4 . . . . 2 Full Trace Events 6 | . 1 . . . 2 . 1 1 . . . . . . . 1 Feedback Events . | . . . . . . . . . . . . . . . . . Feedback Blocked . | . . . . . . . . . . . . . . . . . Robot Schematics Acquired . | . . . . . . . . . . . . . . . . . Robots Built . | . . . . . . . . . . . . . . . . . Authchips . | . . . . . . . . . . . . . . . . . Time . | . . . . . . . . . . . . . . . . . Total Robot Build Rating . | . . . . . . . . . . . . . . . . . Part Schematics Acquired 5 | . . . . . . . . . . . . . . 4 . 1 Parts Built . | . . . . . . . . . . . . . . . . . Authchips . | . . . . . . . . . . . . . . . . . Time . | . . . . . . . . . . . . . . . . . Total Part Build Rating . | . . . . . . . . . . . . . . . . . Part Studies Acquired 10 | . . 4 . 3 . 3 . . . . . . . . . . Parts Repaired 4 | . . . . . . . 2 . . . 2 . . . . . Time 239 | . . . . . . . 100 . . . 139 . . . . . Parts Recycled . | . . . . . . . . . . . . . . . . . Recycled Matter . | . . . . . . . . . . . . . . . . . Retrieved Matter . | . . . . . . . . . . . . . . . . . Retrieved Components 2 | . . . . . . . . . . . 2 . . . . . Parts Scanalyzed 1 | . . . . . . 1 . . . . . . . . . . Part Schematics Acquired . | . . . . . . . . . . . . . . . . . Parts Damaged 1 | . . . . . . 1 . . . . . . . . . . Bothacking | -11 -10 -9 -9 -8 -7 -6 -6 -6 -6 -6 -5 -5 -5 -5 -4 -4 ------------ Run | Yrd Mat Mat Min Mat Fac Fac Ext Cet Arc Hub Fac Upp Upp Zhi Pro Fac Used RIF Installer . | . . . . . . . . . . . . . . . . . Robots Hacked . | . . . . . . . . . . . . . . . . . Non-combat . | . . . . . . . . . . . . . . . . . Combat . | . . . . . . . . . . . . . . . . . Robot Hacks Applied . | . . . . . . . . . . . . . . . . . Relay Couplers Released 6 | . . . . 3 . . . . . . . . . . . 3 Machine Destruction 6 | . . . . 3 . . . . . . . . . . . 3 Fabnet Peak Effective % 4 | . . . . . . . . . . . 3 3 3 3 4 4 Robots Rewired 10 | . . . . . . . 8 . . . . . . . 2 . Allies Hacked 1 | . . . . . . . . . . . . . . . 1 . Hacks Repelled . | . . . . . . . . . . . . . . . . . Allies | -11 -10 -9 -9 -8 -7 -6 -6 -6 -6 -6 -5 -5 -5 -5 -4 -4 -------- Run | Yrd Mat Mat Min Mat Fac Fac Ext Cet Arc Hub Fac Upp Upp Zhi Pro Fac Total Allies 21 | . . . 1 . . . 13 5 . . . . . . 2 . Largest Group 8 | . . . 1 . . . 8 8 6 4 . . . . 2 . Highest-Rated Group 686 | . . . 31 . . . 255 686 554 377 . . . . 75 . Highest-Rated Ally 159 | . . . 31 . . . 159 159 146 96 . . . . 46 . Total Orders . | . . . . . . . . . . . . . . . . . Ally Attacks 252 | . . . 3 . . . 91 78 15 51 . . . . 14 . Total Damage 6982 | . . . 64 . . . 1810 1961 668 2108 . . . . 371 . Kills 46 | . . . 1 . . . 13 13 3 13 . . . . 3 . Allies Corrupted 1 | . . . . . . . . . . . . . . . 1 . Allies Melted 2 | . . . . . . . 2 . . . . . . . . . Intel | -11 -10 -9 -9 -8 -7 -6 -6 -6 -6 -6 -5 -5 -5 -5 -4 -4 ------- Run | Yrd Mat Mat Min Mat Fac Fac Ext Cet Arc Hub Fac Upp Upp Zhi Pro Fac Active Infowar (turns) 16751 | 17 979 1727 451 2160 2537 2719 2265 569 420 264 281 458 724 222 489 469 Optics 5781 | . . . . . . 2263 2265 569 420 264 . . . . . . Sensors 7041 | . . . . . 1224 1851 1066 . . 257 281 458 724 222 489 469 Seismic 6647 | 17 979 1727 451 2160 1313 . . . . . . . . . . . Machine Analysis 454 | . . . . . . 454 . . . . . . . . . . Robot Analysis Total 9 | . 2 1 . 2 . . . . . . . . . 4 . . Derelict Logs Recovered 3 | . . . 2 . . . . . . . . . 1 . . . Drone Launches . | . . . . . . . . . . . . . . . . . Drone Recoveries . | . . . . . . . . . . . . . . . . . Exploration | -11 -10 -9 -9 -8 -7 -6 -6 -6 -6 -6 -5 -5 -5 -5 -4 -4 ------------- Run | Yrd Mat Mat Min Mat Fac Fac Ext Cet Arc Hub Fac Upp Upp Zhi Pro Fac Turns Passed 19718 | 124 1069 1727 664 2201 2765 2799 2265 569 420 473 1631 458 747 227 998 581 Spaces Moved 10747 | 53 544 824 380 1071 1373 1805 995 277 144 251 922 369 577 176 606 380 Core 165 | 20 . . . . . . . . . . . . . . . 145 Treads 4353 | 33 544 824 380 1071 1373 128 . . . . . . . . . . Legs 6227 | . . . . . . 1677 995 277 144 251 922 369 577 176 606 233 Wheels . | . . . . . . . . . . . . . . . . . Hover 2 | . . . . . . . . . . . . . . . . 2 Flight . | . . . . . . . . . . . . . . . . . Fastest Speed 50 | 50 160 160 160 160 155 105 181 178 108 108 108 108 108 117 111 50 Average Speed 143 | 176 160 160 160 179 158 122 181 180 161 126 111 109 110 117 119 92 Slowest Speed 250 | 250 160 160 160 200 208 220 181 181 178 180 182 111 180 118 191 120 Overloaded Moves . | . . . . . . . . . . . . . . . . . Propulsion Burnouts . | . . . . . . . . . . . . . . . . . Robots Hopped . | . . . . . . . . . . . . . . . . . Potential Cave-ins 1 | . . . . . . . . . . . 1 . . . . . Cave-ins Triggered . | . . . . . . . . . . . . . . . . . Exploration Rate (%) 60 | 5 99 75 96 83 32 55 88 72 82 27 29 56 74 62 73 13 Regions Visited 16 Branch Regions 9 Pre-discovered Areas 3 | . . . . . . . . . . . . . . 3 . . Known Exits Taken 12 | . . 1 . 1 . 1 1 1 1 1 1 1 1 1 1 . Unknown Exits Taken 4 | 1 1 . 1 . 1 . . . . . . . . . . . Scrap Searched 7 | . . . 1 . . . . . . . . 3 1 . 2 . Spaces Dug . | . . . . . . . . . . . . . . . . . Terrain Destroyed 249 | . . . 26 . . 21 . . . 27 92 5 14 . 55 9 Melee . | . . . . . . . . . . . . . . . . . Projectile 76 | . . . . . . . . . . . 47 5 14 . 9 1 AOE 173 | . . . 26 . . 21 . . . 27 45 . . . 46 8 Terrain Rammed . | . . . . . . . . . . . . . . . . . Walls Destroyed . | . . . . . . . . . . . . . . . . . Machines Disabled . | . . . . . . . . . . . . . . . . . Actions | -11 -10 -9 -9 -8 -7 -6 -6 -6 -6 -6 -5 -5 -5 -5 -4 -4 --------- Run | Yrd Mat Mat Min Mat Fac Fac Ext Cet Arc Hub Fac Upp Upp Zhi Pro Fac Total 13656 | 70 660 1079 407 1241 1787 2183 1333 314 285 362 1340 395 656 198 782 564 Wait 1418 | . 38 118 7 39 288 141 134 5 97 45 272 8 62 . 80 84 Move 10731 | 52 543 823 379 1070 1372 1804 994 276 143 250 921 368 576 175 605 380 Hop . | . . . . . . . . . . . . . . . . . Pick Up 188 | 5 16 19 1 23 11 33 12 3 8 8 18 3 1 5 8 14 Fast Attach 66 | 7 1 . . 4 4 6 3 1 1 5 6 1 1 7 8 11 Attach 79 | . . 3 3 6 9 19 5 . 1 7 8 1 1 1 9 6 Detach 7 | . . . . 1 . 1 . . 1 . . . . . . 4 Swap 107 | . 3 10 1 11 13 18 6 6 2 7 16 . 2 2 6 4 Drop 154 | . 9 18 1 26 11 21 9 6 8 5 14 1 . 8 1 16 Fire 703 | 6 49 88 15 59 79 101 57 17 24 27 84 13 13 . 53 18 Melee 24 | . . . . . . . . . . . . . . . . 24 Ram . | . . . . . . . . . . . . . . . . . Kick 11 | . . . . . . 3 3 . . 1 1 . . . . 3 Crush 3 | . 1 . . 2 . . . . . . . . . . . . Escape Stasis 30 | . . . . . . . 30 . . . . . . . . . Rewire 92 | . . . . . . . 80 . . . . . . . 12 . Trap 43 | . . . . . . 36 . . . 7 . . . . . . Miscellaneous . | . . . . . . . . . . . . . . . . . Route ------- -11/Scrapyard -10/Materials (discovered 6 exits: *Mat x3 / [*Min x2] / [*Sub]) -9/Materials (discovered 3 exits: *Mat x2 / *Min) -9/Mines (discovered 3 exits: *Mat x2 / [*Zio]) -8/Materials (discovered 3 exits: *Fac x3) -7/Factory -6/Factory (discovered 6 exits: *Fac x2 / *Low x2 / *Ext x2) -6/Extension (discovered 3 exits: *Fac x2 / *Cet) -6/Cetus (discovered 2 exits: *Fac / *Arc) -6/Archives (discovered 3 exits: *Fac / *Hub x2) -6/Hub_04(d) -5/Factory -5/Upper Caves -5/Upper Caves -5/Zhirov -4/Proximity Caves -4/Factory History --------- Turn | Location | Event 62 | -11/Scrapyard | Discovered new exit (range 14) 125 | -11/Scrapyard | Entered Materials 300 | -10/Materials | Build established: Mutant 593 | -10/Materials | Discovered new exit (range 9) 759 | -10/Materials | Discovered new exit (range 15) 790 | -10/Materials | Discovered new exit (range 9) 983 | -10/Materials | Discovered new exit (range 5) 985 | -10/Materials | Discovered new exit (range 12) 1103 | -10/Materials | Discovered new exit (range 5) 1194 | -10/Materials | Entered another Materials area 1194 | -9/Materials | Evolved 2 slots: Propulsion x1, Utility x1 1649 | -9/Materials | Identified exit to Mines 1842 | -9/Materials | Discovered new exit (range 11) 2347 | -9/Materials | Discovered new exit (range 12) 2514 | -9/Materials | Destroyed 8 combat bots 2921 | -9/Materials | Entered Mines 2924 | -9/Mines | Received a Mining Laser from a helpful Derelict 3048 | -9/Mines | A Derelict revealed a hidden shortcut to a safe place 3297 | -9/Mines | Learned location of 1 exit from Materials 3301 | -9/Mines | Discovered new exit (range 8) 3336 | -9/Mines | Learned Materials emergency access door positions 3502 | -9/Mines | Discovered new exit (range 10) 3585 | -9/Mines | Entered Materials 3585 | -8/Materials | Evolved 2 slots: Utility x1, Weapon x1 3586 | -8/Materials | Identified exit to Factory 3840 | -8/Materials | Lost 3 parts (1n1u1w) 4108 | -8/Materials | Build established: Gunner 4276 | -8/Materials | Met 7R-MNS 4844 | -8/Materials | Build established: Scavenger-Gunner 4995 | -8/Materials | Central database locked down 5267 | -8/Materials | Discovered exit to Factory (range 13) 5414 | -8/Materials | Build established: Tank 5470 | -8/Materials | Discovered exit to Factory (range 3) 5786 | -8/Materials | Entered Factory 5786 | -7/Factory | Evolved 2 slots: Power x1, Propulsion x1 5787 | -7/Factory | Caught up to 7R-MNS 5871 | -7/Factory | Identified exit to DSF 6310 | -7/Factory | Build established: Scavenger-Tank 7062 | -7/Factory | Garrison activated, responded to threat 7211 | -7/Factory | Lost 3 parts (1n2u) 7448 | -7/Factory | Discovered new exit (range 13) 7610 | -7/Factory | Build established: Skirmisher 7890 | -7/Factory | Garrison activated, responded to threat 8288 | -7/Factory | Garrison activated, responded to threat 8551 | -7/Factory | Entered another Factory area 8551 | -6/Factory | Evolved 2 slots: Utility x2 8552 | -6/Factory | Caught up to 7R-MNS 8584 | -6/Factory | Garrison activated, responded to threat 8617 | -6/Factory | Build established: Scavenger-Skirmisher 8661 | -6/Factory | Lost 4 parts (3n1u) 9412 | -6/Factory | Build established: Scavenger-Gunner 9722 | -6/Factory | Identified exit to Lower Caves 9722 | -6/Factory | Identified exit to Extension 9742 | -6/Factory | Build established: Scavenger-Skirmisher 9899 | -6/Factory | Discovered new exit (range 16) 9948 | -6/Factory | Discovered new exit (range 18) 10102 | -6/Factory | Identified exit to Factory 10513 | -6/Factory | Lost 4 parts (1p1n2w) 11007 | -6/Factory | Build established: Skirmisher 11050 | -6/Factory | Central database locked down 11327 | -6/Factory | Lost 10 parts (2p2n3u3w) 11350 | -6/Factory | Entered Extension 11778 | -6/Extension | Rescued a captive Derelict 11803 | -6/Extension | Rescued a captive Derelict 12365 | -6/Extension | Build established: Commander-Skirmisher 12451 | -6/Extension | Spotted B-75 Beast 12452 | -6/Extension | Spotted B-75 Beast 12462 | -6/Extension | Destroyed B-75 Beast 12471 | -6/Extension | Destroyed B-75 Beast 12496 | -6/Extension | Lost 3 allies 12500 | -6/Extension | Disrupted transfer network 12518 | -6/Extension | Discovered exit to Factory (range 4) 12609 | -6/Extension | Lost 3 allies 12766 | -6/Extension | Rescued a captive Derelict 12874 | -6/Extension | Build established: Tank 12941 | -6/Extension | Rescued a captive Derelict 13081 | -6/Extension | Repaired Flexi-carbon Leg+ 13133 | -6/Extension | Repaired Angular Momentum Engine 13365 | -6/Extension | Rescued A7 13387 | -6/Extension | Rescued a captive Derelict 13593 | -6/Extension | Discovered exit to Factory (range 10) 13595 | -6/Extension | Discovered new exit (range 6) 13608 | -6/Extension | Identified exit to Cetus 13615 | -6/Extension | Entered Cetus 13615 | -6/Cetus | Accompanied by 3 allies (A7) 13620 | -6/Cetus | Acquired a Cetus Manufacturing Module code from A7 13635 | -6/Cetus | Spotted Cetus Guard 13635 | -6/Cetus | Spotted Cetus Guard 13635 | -6/Cetus | Spotted Cetus Guard 13645 | -6/Cetus | Allies destroyed Cetus Guard 13645 | -6/Cetus | Spotted Cetus Guard 13656 | -6/Cetus | Destroyed Cetus Guard 13663 | -6/Cetus | Allies destroyed Cetus Guard 13665 | -6/Cetus | Allies destroyed Cetus Guard 13756 | -6/Cetus | Started Cetus Manufacturing Module 13781 | -6/Cetus | Manufactured an Enhanced Grunt 13806 | -6/Cetus | Manufactured an Enhanced Grunt 13831 | -6/Cetus | Manufactured an Enhanced Grunt 13856 | -6/Cetus | Manufactured an Enhanced Grunt 13881 | -6/Cetus | Manufactured an Enhanced Grunt 13907 | -6/Cetus | Discovered new exit (range 22) 13960 | -6/Cetus | Spotted Cetus Guard 13960 | -6/Cetus | Spotted Cetus Guard 13962 | -6/Cetus | Spotted Cetus Guard 13962 | -6/Cetus | Spotted Cetus Guard 13971 | -6/Cetus | Discovered exit to Factory (range 21) 13973 | -6/Cetus | Allies destroyed Cetus Guard 13973 | -6/Cetus | Allies destroyed Cetus Guard 13985 | -6/Cetus | Allies destroyed Cetus Guard 13989 | -6/Cetus | Allies destroyed Cetus Guard 14008 | -6/Cetus | Met Revision 17 14173 | -6/Cetus | Identified exit to Archives 14184 | -6/Cetus | Entered Archives 14184 | -6/Archives | Accompanied by 6 allies (A7) 14223 | -6/Archives | Discovered new exit (range 22) 14230 | -6/Archives | Discovered new exit (range 22) 14250 | -6/Archives | Discovered exit to Factory (range 21) 14577 | -6/Archives | Identified exit to Hub_04(d) 14604 | -6/Archives | Entered Hub_04(d) 14604 | -6/Hub_04(d) | Accompanied by 4 allies 14854 | -6/Hub_04(d) | Core integrity fell below 50% 14921 | -6/Hub_04(d) | Destroyed 11 combat bots 14931 | -6/Hub_04(d) | Lost 9 parts (2p2n2u3w) 14950 | -6/Hub_04(d) | Discovered exit to Factory (range 16) 15077 | -6/Hub_04(d) | Entered Factory 15077 | -5/Factory | Evolved 2 slots: Propulsion x1, Utility x1 15334 | -5/Factory | Repaired Enh. Flexi-carbon Leg 15355 | -5/Factory | Build established: Scavenger-Tank 15630 | -5/Factory | Lost 4 parts (1n2u1w) 15794 | -5/Factory | Repaired Flexi-carbon Leg+ 16367 | -5/Factory | System corruption reached 10% 16390 | -5/Factory | Destroyed 9 combat bots 16695 | -5/Factory | Discovered new exit (range 11) 16707 | -5/Factory | Identified exit to Upper Caves 16708 | -5/Factory | Entered Upper Caves 16735 | -5/Upper Caves | Lost 3 parts (2p1w) 17083 | -5/Upper Caves | Discovered new exit (range 8) 17097 | -5/Upper Caves | Identified exit to Upper Caves 17166 | -5/Upper Caves | Entered another Upper Caves area 17228 | -5/Upper Caves | Build established: Scavenger-Skirmisher 17505 | -5/Upper Caves | Spotted B-75 Beast 17516 | -5/Upper Caves | Destroyed B-75 Beast 17527 | -5/Upper Caves | Learned 4 Factory zone layouts 17899 | -5/Upper Caves | Discovered new exit (range 13) 17912 | -5/Upper Caves | Identified exit to Zhirov 17913 | -5/Upper Caves | Entered Zhirov 17913 | -5/Zhirov | Discovered new exit (range 3) 17916 | -5/Zhirov | Identified exit to Proximity Caves 17936 | -5/Zhirov | Met Zhirov 17957 | -5/Zhirov | Learned location of Quarantine (-3) 17957 | -5/Zhirov | Learned location of Testing (-2) 17957 | -5/Zhirov | Learned location of Command (-1) 17978 | -5/Zhirov | Zhirov requested help retrieving the SGEMP Prototype 17998 | -5/Zhirov | Found Alien Artifact 17998 | -5/Zhirov | Identified Integrated Reactor 17998 | -5/Zhirov | Installed Integrated Reactor, increased core energy generation (+10) 18023 | -5/Zhirov | Found Alien Artifact 18140 | -5/Zhirov | Entered Proximity Caves 18143 | -4/Proximity Caves | Spotter reported a threat 18539 | -4/Proximity Caves | Attacked by a faux Warlord 18607 | -4/Proximity Caves | Lost 6 parts (2n2u2w) 18717 | -4/Proximity Caves | Core integrity fell below 50% 18854 | -4/Proximity Caves | Build established: Scavenger-Gunner 18975 | -4/Proximity Caves | Ambushed by research squad 19032 | -4/Proximity Caves | Lost 9 parts (3p1n2u3w) 19129 | -4/Proximity Caves | Discovered new exit (range 9) 19137 | -4/Proximity Caves | Identified exit to Factory 19138 | -4/Proximity Caves | Entered Factory 19138 | -4/Factory | Evolved 2 slots: Utility x2 19272 | -4/Factory | Build established: Scavenger-Skirmisher 19364 | -4/Factory | Garrison activated, responded to threat 19413 | -4/Factory | Lost 3 parts (2u1w) 19630 | -4/Factory | Lost 9 parts (1p3n3u2w) 19650 | -4/Factory | Core integrity fell below 50% 19669 | -4/Factory | Lost 3 parts (2n1u) 19670 | -4/Factory | Core integrity fell below 20% 19719 | -4/Factory | Destroyed by H-71 Marshal with Heavy Mass Driver Last Messages --------------- 19678_ K-01 Serf collects debris. 19678_ Destroyed Unknown Processor. 19678_ W-44 Eye system corrupted by crushing effect. 19679_ K-01 Serf collects debris. 19679_ Slug penetrates Subcomponent Replicator. 19679_ Slug penetrates Wall. 19685_ K-01 Serf collects debris. 19710_ Gyrokinetic Inverter destroyed. 19713_ Slug penetrates Wall. 19714_ System corrupted: Matter fused (-10). 19716_ Slug penetrates Wall. 19716_ Penetrated by Slug. 19716_ Gravity Flail destroyed. 19717_ ALERT: Cargo convoy en route, clear transfer corridor. 19718_ ALERT: Suspicious intruders detected, dispatching Cutter reinforcements to area. 19719_ Adv. Signal Interpreter destroyed. 19719_ Critical hit (Blast). Map ----- +----------------------------------------------------+ | ?????????????????????????????????????????????????? | | ?????????????????????????????????????????????????? | | ?????????????????????????????????????????????????? | | ?????????????????????????????????????????????????? | | ?????????????????????????????????????????????????? | | ?????????????????????????????????????????????????? | | ?????????????????????????????????????????????????? | | ?????????????????????????????????????????????????? | | ?????????????????????????????????????????????????? | | ?????????????????????????????????????????????????? | | ?????????????????????????????????????????????????? | | ?????????????????????????????????????????????????? | | ?????????????????????????????????????????????????? | | ?????????????????????????????????????????????????? | | ?????????????????????????????????????????????????? | | ???????????????????????????????????? ??????? | | ???????????????????????????????????# #?????? | | ???????????????????????????????????# #?????? | | ???????????????????????????????????+ #?????? | | ???????????????????????????????????# #?????? | | ???????????????????????????????????# #???### | | ???????????????????????????????????# #??? | | ???????????????????????????????????# #?? | | ??????????????????????????########## #? | | ????????????????########### #? """ | | ?????????? @ # """ | | ?????????? # """ | | ????????H? % / | | ??????????? #""" | | ??????????? #"R | | ???????????? ############## #""" | | ??????????????????????????####+########### #""" | | ?????????????????????????????????????????# # | | ?????????????????????????????????????????# ####### | | ?????????????????????????????????????????# #?????? | | ?????????????????????????????????????????# #?????? | | ?????????????????????????????????????????# #?????? | | ?????????????????????????????????????????# #?????? | | ?????????????????????????????????????????# ####### | | ?????????????????????????????????????????# | | ?????????????????????????????????????????######### | | ?????????????????????????????????????????????????? | | ?????????????????????????????????????????????????? | | ?????????????????????????????????????????????????? | | | | | | | | | | | | | +----------------------------------------------------+ Best States ------------- Heat Dissipation 116 Energy Generation 47 Energy Capacity 990 Matter Stores 300 Matter Capacity 300 Sight Range 22 Robot Scan Range 16 Terrain Scan Density 10 Base Temperature (-) 150 EM Shielding 3 Armor Coverage 225 Weapon Cycling 20 Evasion (%) 63 Melee Accuracy 6 Target Analysis 6 Recoil Reduction 4 Offensive Hacking 14 Item Schematics ----------------- Assault Drone Bay | -5/Zhirov | Free Exp. Heat Sink | -5/Zhirov | Free Exp. Optical Array | -5/Zhirov | Free Imp. Arc Thrower | -5/Zhirov | Free Hcp. Storage Unit | -4/Factory | Hacked Robot Schematics ------------------ None Fabricated ------------ Nothing Repaired ---------- Flexi-carbon Leg | 19% | -6/Extension Angular Momentum Engine | 14% | -6/Extension Enh. Flexi-carbon Leg | 39% | -5/Factory Flexi-carbon Leg | 14% | -5/Factory Studied --------- Beam Rifle | -9/Materials | Hacked Lgt. Treads | -9/Materials | Hacked Imp. Treads | -9/Materials | Hacked Rocket Launcher | -9/Materials | Hacked Plasma Cannon | -8/Materials | Hacked Imp. Ion Engine | -8/Materials | Hacked Deuterium Engine | -8/Materials | Hacked Flexi-carbon Leg | -6/Factory | Hacked Carbon-fiber Leg | -6/Factory | Hacked Plasma Rifle | -6/Factory | Hacked Alien Tech Used ----------------- Integrated Reactor Achievements -------------- DIY Cooler Resistances Are Futile Well Done Challenges ------------ None Game ------ Seed NovaStasisGravjet Manual? 0 Play Time 02:19:15 Cumulative 218.2 hours Start 2025.10.29 @ 15:49:38 End 2025.10.29 @ 18:07:23 Sessions 1 Manual Loads 0 Difficulty Rogue Special Mode None Game No. 267 Rogue 267 Adventurer 0 Explorer 0 Win Type - Total 3 Types 3/0/0/0/0/0/0/0/0/0 Lore% 74 Gallery% 57 Achievement% 40 Wizard Run 0 Options --------- Layout 1 ASCII 0 Keyboard 1 Movement Numpad Keybinds 0 Fullscreen 1 Font 24/Smallcaps Map View 50x35 Zoom Use 0% Tactical HUD 1 Map Filters NONE Filters NONE Steam 1 RUN: bdb8c364-6adb-4629-a19e-807945c0c893